fUSD/lending_fUSD_20260214
["ID","MTS","AMOUNT","RATE_DAILY","PERIOD"]
[405380421,1771098651576,-533.58576223,0.00041095,9]
[405380422,1771098651586,-500.0,0.00041095,120]
[405380423,1771098651596,-500.0,0.00041095,120]
[405380424,1771098651606,-500.0,0.00041095,120]
[405380425,1771098651614,-500.0,0.00041095,120]
[405380426,1771098651622,-500.0,0.00041095,120]
[405380427,1771098651630,-500.0,0.00041095,120]
[405380428,1771098651639,-500.0,0.00041095,120]
[405380429,1771098651654,-500.0,0.00041095,120]
[405380430,1771098651664,-573.1,0.00041095,120]
[405380431,1771098651672,-500.0,0.00041095,120]
[405380432,1771098651680,-4121.16,0.00041095,120]
[405380433,1771098651690,-547.61184623,0.00041095,120]
[405380434,1771098651700,-500.0,0.00041095,120]
[405380435,1771098651710,-500.0,0.00041095,120]
[405380436,1771098651722,-500.0,0.00041095,120]
[405380437,1771098651738,-678.82,0.00041095,120]
[405380438,1771098651747,-500.0,0.00041095,120]
[405380439,1771098651758,-582.26,0.00041095,120]
[405380440,1771098651769,-500.0,0.00041095,60]
[405380441,1771098651778,-5058.13,0.00041095,120]
[405380442,1771098651788,-500.0,0.00041095,120]
[405380443,1771098651797,-500.0,0.00041095,120]
[405380444,1771098651808,-500.0,0.00041095,120]
[405380445,1771098651819,-500.0,0.00041095,120]
[405380446,1771098651829,-773.35,0.00041095,120]
[405380447,1771098651840,-1275.07,0.00041095,120]
[405380448,1771098651851,-1999.0,0.00041095,120]
[405380449,1771098651859,-1430.59,0.00041095,15]
[405380450,1771098651868,-900.91,0.00041095,120]
[405380451,1771098651876,-500.0,0.00041095,120]
[405380452,1771098651885,-500.0,0.00041095,9]
[405380453,1771098651894,-613.99848679,0.00041095,9]
[405380454,1771098651903,-5038.38,0.00041095,120]
[405380455,1771098651913,-500.0,0.00041095,120]
[405380456,1771098651922,-500.0,0.00041095,120]
[405380457,1771098651931,-500.0,0.00041095,120]
[405380458,1771098651940,-568.05,0.00041095,120]
[405380459,1771098651949,-500.0,0.00041095,120]
[405380460,1771098651958,-500.0,0.00041095,120]
[405380461,1771098651967,-6904.64,0.00041095,120]
[405380462,1771098651977,-500.0,0.00041095,120]
[405380463,1771098651986,-500.0,0.00041095,120]
[405380464,1771098651995,-500.0,0.00041095,120]
[405380465,1771098652006,-833.33,0.00041095,120]
[405380466,1771098652016,-620.05234386,0.00041095,15]
[405380467,1771098652026,-749.76,0.00041095,120]
[405380468,1771098652035,-500.0,0.00041095,120]
[405380469,1771098652045,-2211.69,0.00041095,120]
[405380470,1771098652055,-839.01,0.00041096,120]
[405380471,1771098652064,-19326.36,0.00041096,120]
[405380472,1771098652074,-802.53784,0.00041215,30]
[405380473,1771098652085,-1000.0,0.00041247,2]
[405380474,1771098652095,-180.31566856,0.00041369,90]
[405380475,1771098652104,-500.0,0.00041369,120]
[405380476,1771098652114,-500.0,0.00041369,120]
[405380477,1771098652124,-500.0,0.00041369,120]
[405380478,1771098652134,-500.0,0.00041369,120]
[405380479,1771098652143,-1740.85,0.00041369,120]
[405380480,1771098652153,-922.65,0.00041369,120]
[405380481,1771098652162,-500.0,0.00041369,120]
[405380482,1771098652172,-500.0,0.00041369,120]
[405380483,1771098652181,-500.0,0.00041369,120]
[405380484,1771098652191,-500.0,0.00041369,120]
[405380485,1771098652200,-500.0,0.00041369,120]
[405380486,1771098652209,-500.0,0.00041369,120]
[405380487,1771098652219,-686.0,0.00041369,120]
[405380488,1771098652229,-500.0,0.00041369,120]
[405380489,1771098652239,-500.0,0.00041369,120]
[405380490,1771098652248,-500.0,0.00041369,120]
[405380491,1771098652257,-500.0,0.00041369,120]
[405380492,1771098652267,-500.0,0.00041369,120]
[405380493,1771098652276,-500.0,0.00041369,120]
[405380494,1771098652286,-500.0,0.00041369,120]
[405380495,1771098652295,-500.0,0.00041369,120]
[405380496,1771098652305,-500.0,0.00041369,120]
[405380497,1771098652315,-500.0,0.00041369,120]
[405380498,1771098652324,-500.0,0.00041369,120]
[405380499,1771098652333,-500.0,0.00041369,120]
[405380500,1771098652343,-500.0,0.00041369,120]
[405380501,1771098652352,-310.93051611,0.00041369,120]
[405380502,1771098652362,-1920.75,0.00041369,120]
[405380503,1771098652372,-775.99,0.00041369,120]
[405380504,1771098652381,-500.0,0.00041369,120]
[405380505,1771098652391,-834.29,0.00041369,120]
[405380506,1771098652400,-7114.09,0.00041369,120]
[405380507,1771098652409,-500.0,0.00041369,120]
[405380508,1771098652419,-500.0,0.00041369,120]
[405380509,1771098652428,-500.0,0.00041369,120]
[405380510,1771098652437,-500.0,0.00041369,120]
[405380511,1771098652447,-500.0,0.00041369,120]
[405380512,1771098652455,-500.0,0.00041369,120]
[405380513,1771098652465,-500.0,0.00041369,120]
[405380514,1771098652475,-500.0,0.00041369,120]
[405380515,1771098652484,-500.0,0.00041369,120]
[405380516,1771098652493,-500.0,0.00041369,120]
[405380517,1771098652503,-573.1,0.00041369,120]
[405380518,1771098652512,-500.0,0.00041369,120]
[405380519,1771098652521,-4121.16,0.00041369,120]
[405380520,1771098652530,-500.0,0.00041369,120]
[405380521,1771098652539,-500.0,0.00041369,120]
[405380522,1771098652548,-500.0,0.00041369,120]
[405380523,1771098652607,-678.82,0.00041369,120]
[405380524,1771098652616,-500.0,0.00041369,120]
[405380525,1771098652625,-582.26,0.00041369,120]
[405380526,1771098652634,-500.0,0.00041369,60]
[405380527,1771098652644,-5058.13,0.00041369,120]
[405380528,1771098652653,-500.0,0.00041369,120]
[405380529,1771098652663,-500.0,0.00041369,120]
[405380530,1771098652672,-500.0,0.00041369,120]
[405380531,1771098652681,-500.0,0.00041369,120]
[405380532,1771098652691,-773.35,0.00041369,120]
[405380533,1771098652702,-1275.07,0.00041369,120]
[405380534,1771098652712,-1430.59,0.00041369,15]
[405380535,1771098652722,-900.91,0.00041369,120]
[405380536,1771098652734,-500.0,0.00041369,120]
[405380537,1771098652744,-5038.38,0.00041369,120]
[405380538,1771098652753,-500.0,0.00041369,120]
[405380539,1771098652763,-500.0,0.00041369,120]
[405380540,1771098652772,-500.0,0.00041369,120]
[405380541,1771098652781,-568.05,0.00041369,120]
[405380542,1771098652790,-500.0,0.00041369,120]
[405380543,1771098652801,-500.0,0.00041369,120]
[405380544,1771098652811,-6904.64,0.00041369,120]
[405380545,1771098652820,-500.0,0.00041369,120]
[405380546,1771098652829,-500.0,0.00041369,120]
[405380547,1771098652837,-500.0,0.00041369,120]
[405380548,1771098652847,-833.33,0.00041369,120]
[405380549,1771098652856,-749.76,0.00041369,120]
[405380550,1771098652865,-500.0,0.00041369,120]
[405380551,1771098652875,-2211.69,0.00041369,120]
[405380552,1771098652884,-802.53784,0.00041415,30]
[405380553,1771098652894,-175.543101,0.00041512,120]
[405380554,1771098652903,-152.0,0.000416,120]
[405380555,1771098652912,-802.53784,0.00041615,30]
[405380556,1771098652922,-500.0,0.00041643,120]
[405380557,1771098652932,-500.0,0.00041643,120]
[405380558,1771098652942,-500.0,0.00041643,120]
[405380559,1771098652951,-500.0,0.00041643,120]
[405380560,1771098652960,-1740.85,0.00041643,120]
[405380561,1771098652971,-922.65,0.00041643,120]
[405380562,1771098652979,-500.0,0.00041643,120]
[405380563,1771098652988,-500.0,0.00041643,120]
[405380564,1771098652998,-500.0,0.00041643,120]
[405380565,1771098653007,-500.0,0.00041643,120]
[405380566,1771098653016,-500.0,0.00041643,120]
[405380567,1771098653026,-500.0,0.00041643,120]
[405380568,1771098653035,-686.0,0.00041643,120]
[405380569,1771098653046,-500.0,0.00041643,120]
[405380570,1771098653055,-500.0,0.00041643,120]
[405380571,1771098653063,-500.0,0.00041643,120]
[405380572,1771098653073,-500.0,0.00041643,120]
[405380573,1771098653082,-500.0,0.00041643,120]
[405380574,1771098653092,-589.51684256,0.00041643,120]
[405380575,1771098653101,-500.0,0.00041643,120]
[405380576,1771098653111,-597.76207376,0.00041643,120]
[405380577,1771098653121,-500.0,0.00041643,120]
[405380578,1771098653131,-500.0,0.00041643,120]
[405380579,1771098653141,-500.0,0.00041643,120]
[405380580,1771098653151,-500.0,0.00041643,120]
[405380581,1771098653161,-500.0,0.00041643,120]
[405380582,1771098653170,-1920.75,0.00041643,120]
[405380583,1771098653180,-775.99,0.00041643,120]
[405380584,1771098653190,-500.0,0.00041643,120]
[405380585,1771098653200,-834.29,0.00041643,120]
[405380586,1771098653210,-7114.09,0.00041643,120]
[405380587,1771098653219,-500.0,0.00041643,120]
[405380588,1771098653229,-500.0,0.00041643,120]
[405380589,1771098653239,-500.0,0.00041643,120]
[405380590,1771098653248,-306.41300195,0.00041643,120]
[405380591,1771098653257,-500.0,0.00041643,120]
[405380592,1771098653267,-500.0,0.00041643,120]
[405380593,1771098653277,-500.0,0.00041643,120]
[405380594,1771098653287,-599.12539052,0.00041643,120]
[405380595,1771098653296,-500.0,0.00041643,120]
[405380596,1771098653306,-500.0,0.00041643,120]
[405380597,1771098653315,-573.1,0.00041643,120]
[405380598,1771098653327,-500.0,0.00041643,120]
[405380599,1771098653337,-4121.16,0.00041643,120]
[405380600,1771098653347,-500.0,0.00041643,120]
[405380601,1771098653357,-500.0,0.00041643,120]
[405380602,1771098653366,-366.63085566,0.00041643,120]
[405380603,1771098653376,-678.82,0.00041643,120]
[405380604,1771098653385,-500.0,0.00041643,120]
[405380605,1771098653395,-582.26,0.00041643,120]
[405380606,1771098653404,-5058.13,0.00041643,120]
[405380607,1771098653412,-500.0,0.00041643,60]
[405380608,1771098653422,-500.0,0.00041643,120]
[405380609,1771098653432,-500.0,0.00041643,120]
[405380610,1771098653442,-500.0,0.00041643,120]
[405380611,1771098653452,-500.0,0.00041643,120]
[405380612,1771098653462,-773.35,0.00041643,120]
[405380613,1771098653471,-1275.07,0.00041643,120]
[405380614,1771098653482,-1430.59,0.00041643,15]
[405380615,1771098653491,-900.91,0.00041643,120]
[405380616,1771098653501,-500.0,0.00041643,120]
[405380617,1771098653510,-5038.38,0.00041643,120]
[405380618,1771098653519,-500.0,0.00041643,120]
[405380619,1771098653528,-500.0,0.00041643,120]
[405380620,1771098653537,-500.0,0.00041643,120]
[405380621,1771098653546,-568.05,0.00041643,120]
[405380622,1771098653554,-500.0,0.00041643,120]
[405380623,1771098653563,-500.0,0.00041643,120]
[405380624,1771098653572,-6904.64,0.00041643,120]
[405380625,1771098653581,-500.0,0.00041643,120]
[405380626,1771098653591,-500.0,0.00041643,120]
[405380627,1771098653601,-500.0,0.00041643,120]
[405380628,1771098653611,-833.33,0.00041643,120]
[405380629,1771098653620,-749.76,0.00041643,120]
[405380630,1771098653630,-500.0,0.00041643,120]
[405380631,1771098653640,-2211.69,0.00041643,120]
[405380632,1771098653651,-44280.08,0.000417,14]
[405380633,1771098653661,-10539.0,0.000417,117]
[405380634,1771098653670,-1999.0,0.0004178,120]
[405380635,1771098653680,-802.53784,0.00041815,30]
[405380636,1771098653691,-509.0,0.00041875,23]
[405380637,1771098653701,-151.0,0.000419,120]
[405380638,1771098653711,-500.0,0.00041917,120]
[405380639,1771098653722,-500.0,0.00041917,120]
[405380640,1771098653733,-500.0,0.00041917,120]
[405380641,1771098653742,-500.0,0.00041917,120]
[405380642,1771098653751,-1740.85,0.00041917,120]
[405380643,1771098653760,-922.65,0.00041917,120]
[405380644,1771098653771,-500.0,0.00041917,120]
[405380645,1771098653780,-500.0,0.00041917,120]
[405380646,1771098653790,-500.0,0.00041917,120]
[405380647,1771098653801,-500.0,0.00041917,120]
[405380648,1771098653811,-336.13009966,0.00041917,120]
[405380649,1771098653821,-500.0,0.00041917,120]
[405380650,1771098653831,-686.0,0.00041917,120]
[405380651,1771098653841,-500.0,0.00041917,120]
[405380652,1771098653850,-500.0,0.00041917,120]
[405380653,1771098653860,-500.0,0.00041917,120]
[405380654,1771098653869,-506.89341009,0.00041917,120]
[405380655,1771098653879,-500.0,0.00041917,120]
[405380656,1771098653888,-500.0,0.00041917,120]
[405380657,1771098653899,-500.0,0.00041917,120]
[405380658,1771098653908,-500.0,0.00041917,120]
[405380659,1771098653917,-500.0,0.00041917,120]
[405380660,1771098653927,-500.0,0.00041917,120]
[405380661,1771098653937,-500.0,0.00041917,120]
[405380662,1771098653947,-1920.75,0.00041917,120]
[405380663,1771098653956,-775.99,0.00041917,120]
[405380664,1771098653966,-619.53099504,0.00041917,120]
[405380665,1771098653976,-834.29,0.00041917,120]
[405380666,1771098653986,-7114.09,0.00041917,120]
[405380667,1771098653997,-185.12414758,0.00041917,120]
[405380668,1771098654006,-500.0,0.00041917,120]
[405380669,1771098654016,-500.0,0.00041917,120]
[405380670,1771098654026,-500.0,0.00041917,120]
[405380671,1771098654036,-500.0,0.00041917,120]
[405380672,1771098654047,-500.0,0.00041917,120]
[405380673,1771098654057,-500.0,0.00041917,120]
[405380674,1771098654067,-500.0,0.00041917,120]
[405380675,1771098654077,-573.1,0.00041917,120]
[405380676,1771098654087,-500.0,0.00041917,120]
[405380677,1771098654098,-4121.16,0.00041917,120]
[405380678,1771098654109,-500.0,0.00041917,120]
[405380679,1771098654118,-500.0,0.00041917,120]
[405380680,1771098654128,-678.82,0.00041917,120]
[405380681,1771098654138,-180.86812799,0.00041917,120]
[405380682,1771098654148,-582.26,0.00041917,120]
[405380683,1771098654159,-4650.30001523,0.00041917,120]
[405380684,1771098654305,-407.82998477,0.00041917,120]
[405380685,1771098654315,-335.18001523,0.00041917,60]
[405380686,1771098654329,-164.81998477,0.00041917,60]
[405380687,1771098654339,-500.0,0.00041917,120]
[405380688,1771098654350,-497.46097724,0.00041917,120]
[405380689,1771098654360,-551.17528472,0.00041917,120]
[405380690,1771098654369,-500.0,0.00041917,120]
[405380691,1771098654379,-773.35,0.00041917,120]
[405380692,1771098654389,-1275.07,0.00041917,120]
[405380693,1771098654399,-1430.59,0.00041917,15]
[405380694,1771098654409,-900.91,0.00041917,120]
[405380695,1771098654419,-500.0,0.00041917,120]
[405380696,1771098654428,-2094.95082372,0.00041917,120]
[405380697,1771098654624,-379.12940536,0.00036986,31]
[405380698,1771098654643,-46.69088764,0.00036986,31]
[405380699,1771098654653,-425.820293,0.00038356,120]
[405380700,1771098654663,-425.820301,0.00038356,120]
[405380701,1771098654672,-2943.42917628,0.00041917,120]
[405380702,1771098654682,-500.0,0.00041917,120]
[405380703,1771098654692,-500.0,0.00041917,120]
[405380704,1771098654702,-500.0,0.00041917,120]
[405380705,1771098654711,-568.05,0.00041917,120]
[405380706,1771098654722,-500.0,0.00041917,120]
[405380707,1771098654735,-419.42,0.00041917,120]
[405380708,1771098654744,-6904.64,0.00041917,120]
[405380709,1771098654754,-500.0,0.00041917,120]
[405380710,1771098654763,-500.0,0.00041917,120]
[405380711,1771098654774,-500.0,0.00041917,120]
[405380712,1771098654784,-833.33,0.00041917,120]
[405380713,1771098654795,-749.76,0.00041917,120]
[405380714,1771098654807,-500.0,0.00041917,120]
[405380715,1771098654817,-313.43934408,0.00041917,120]
[405380716,1771098654829,-434.000001,0.00041917,120]
[405380717,1771098654841,-1464.25065492,0.00041917,120]
[405380718,1771098654851,-270.39079621,0.00041999,30]
[405380719,1771098654860,-3086.29734865,0.00042,120]
[405380720,1771098654872,-6913.70265135,0.00042,120]
[405380721,1771098654882,-10000.0,0.00042,120]
[405380722,1771098654892,-1086.29734865,0.00042,120]
[405380723,1771099120087,153.0,0.0002,30]
[405380724,1771099120554,152.0,0.0002,30]
[405380737,1771099832207,-250.0,0.00015,2]
[405380738,1771099832218,-242.64,0.000169,2]
[405380739,1771099832227,-1093.237,0.00016953,2]
[405380740,1771099832237,-978.76495875,0.00016999,2]
[405380741,1771099832247,-284.9658151,0.00016999,2]
[405380742,1771099832257,-300.0,0.00017,2]
[405380743,1771099832267,-156.84473272,0.00017078,2]
[405380744,1771099832276,-151.73231442,0.00017088,2]
[405380745,1771099832287,-300.0,0.00017096,2]
[405380746,1771099832301,-300.0,0.00017096,2]
[405380747,1771099832311,-300.0,0.00017096,2]
[405380749,1771099832321,-1200.0,0.00017096,2]
[405380750,1771099832330,-500.0,0.00017097,2]
[405380751,1771099832340,-334.52653676,0.00017097,2]
[405380752,1771099832350,-500.0,0.00017097,2]
[405380753,1771099832360,-500.0,0.00017097,2]
[405380754,1771099832369,-500.0,0.00017097,2]
[405380756,1771099832378,-500.0,0.00017097,2]
[405380757,1771099832388,-500.0,0.00017097,2]
[405380758,1771099832398,-500.0,0.00017097,2]
[405380759,1771099832408,-500.0,0.00017097,2]
[405380760,1771099832418,-500.0,0.00017097,2]
[405380761,1771099832428,-500.0,0.00017097,2]
[405380762,1771099832438,-500.0,0.00017097,2]
[405380763,1771099832447,-500.0,0.00017097,2]
[405380764,1771099832458,-314.33695284,0.00017097,2]
[405380769,1771099832472,-185.66304716,0.00017097,2]
[405380773,1771099832482,-500.0,0.00017097,2]
[405380777,1771099832491,-500.0,0.00017097,2]
[405380781,1771099832504,-500.0,0.00017097,2]
[405380784,1771099832515,-500.0,0.00017097,2]
[405380786,1771099832525,-500.0,0.00017097,2]
[405380788,1771099832534,-500.0,0.00017097,2]
[405380790,1771099832544,-500.0,0.00017097,2]
[405380792,1771099832553,-500.0,0.00017097,2]
[405380794,1771099832562,-500.0,0.00017097,2]
[405380796,1771099832571,-500.0,0.00017097,2]
[405380797,1771099832581,-480.73516163,0.00017097,2]
[405380798,1771099832593,-19.26483837,0.00017097,2]
[405380799,1771099832602,-492.12569491,0.00017097,2]
[405380800,1771099832614,-7.87430509,0.00017097,2]
[405380801,1771099832623,-264.03156385,0.00017097,2]
[405380802,1771099832634,-235.96843615,0.00017097,2]
[405380803,1771099832643,-500.0,0.00017097,2]
[405380804,1771099832652,-500.0,0.00017097,2]
[405380805,1771099832662,-500.0,0.00017097,2]
[405380806,1771099832673,-275.80913015,0.00017097,2]
[405380808,1771099838303,-224.19086985,0.00017097,2]
[405380809,1771099838314,-341.31728855,0.00017097,2]
[405380810,1771099838324,-500.0,0.00017097,2]
[405380811,1771099838335,-500.0,0.00017097,2]
[405380812,1771099838345,-500.0,0.00017097,2]
[405380813,1771099838356,-500.0,0.00017097,2]
[405380814,1771099838365,-99.75959717,0.00017097,2]
[405380815,1771099838412,-228.30106493,0.00017097,2]
[405380816,1771099838424,-227.41211671,0.00017097,2]
[405380817,1771099838437,-272.58788329,0.00017097,2]
[405380818,1771099838448,-224.71438887,0.00017097,2]
[405380824,1771099840661,-275.28561113,0.00017097,2]
[405380825,1771099840671,-500.0,0.00017097,2]
[405380826,1771099840681,-500.0,0.00017097,2]
[405380827,1771099840691,-500.0,0.00017097,2]
[405380828,1771099840702,-500.0,0.00017097,2]
[405380829,1771099840711,-500.0,0.00017097,2]
[405380830,1771099840721,-500.0,0.00017097,2]
[405380831,1771099840731,-500.0,0.00017097,2]
[405380832,1771099840741,-500.0,0.00017097,2]
[405380833,1771099840751,-500.0,0.00017097,2]
[405380834,1771099840761,-500.0,0.00017097,2]
[405380835,1771099840771,-500.0,0.00017097,2]
[405380836,1771099840781,-500.0,0.00017097,2]
[405380837,1771099840791,-434.13172886,0.00017097,2]
[405380838,1771099840801,-571.45622171,0.00017097,2]
[405380839,1771099840811,-500.0,0.00017097,2]
[405380840,1771099840822,-500.0,0.00017097,2]
[405380841,1771099840831,-276.20094661,0.00017097,2]
[405380842,1771099840840,-293.37063665,0.00017097,2]
[405380843,1771099840849,-500.0,0.00017097,2]
[405380844,1771099840858,-499.99999999,0.00017097,2]
[405380845,1771099840867,-702318.73305875,0.00017098,2]
[405380846,1771099840896,-4000.0,0.00017098,2]
[405380851,1771099846073,-159087.80089347,0.00017098,2]
[405380852,1771099846236,-7325.71350668,0.00017098,2]
[405380853,1771099846248,-957.40749999,0.00017098,2]
[405380854,1771099846260,-601.71500188,0.00017098,2]
[405380855,1771099846348,-1228.0,0.00017098,2]
[405380856,1771099846360,-2033.9295,0.00017098,2]
[405380857,1771099846372,-1916.868686,0.00017098,2]
[405380868,1771099847362,-1322.84,0.00017098,2]
[405380876,1771100295999,-300.0,0.00016997,2]
[405380877,1771100296027,-300.0,0.00016997,2]
[405380878,1771100296055,-300.0,0.00016997,2]
[405380879,1771100296084,-250.0,0.00016998,2]
[405380880,1771100296111,-256.46923359,0.00016998,2]
[405380881,1771100296140,-965.83173723,0.00016998,2]
[405380882,1771100296167,-170.65746582,0.00016998,2]
[405380883,1771100296194,-369.58182492,0.00016998,2]
[405380884,1771100296222,-199.32678648,0.00016998,2]
[405380885,1771100296251,-351.0,0.00017096,2]
[405380886,1771100296281,-1200.0,0.00017096,2]
[405380887,1771100296308,-300.0,0.00017096,2]
[405380888,1771100296335,-229.64246347,0.00017097,2]
[405380889,1771100296362,-500.0,0.00017097,2]
[405380890,1771100296389,-500.0,0.00017097,2]
[405380891,1771100296423,-600.0193552,0.00017097,2]
[405380892,1771100296451,-276.20094661,0.00017097,2]
[405380893,1771100296479,-293.37063665,0.00017097,2]
[405380894,1771100296506,-234.16857574,0.00017097,2]
[405380895,1771100296533,-171.43686651,0.00017097,2]
[405380896,1771100296563,-500.0,0.00017097,2]
[405380897,1771100296593,-500.0,0.00017097,2]
[405380898,1771100296623,-500.0,0.00017097,2]
[405380899,1771100297016,-284.13172885,0.00017097,2]
[405380900,1771100297048,-500.0,0.00017097,2]
[405380901,1771100297076,-500.0,0.00017097,2]
[405380902,1771100297102,-500.0,0.00017097,2]
[405380903,1771100297128,-500.0,0.00017097,2]
[405380904,1771100297155,-500.0,0.00017097,2]
[405380905,1771100297180,-500.0,0.00017097,2]
[405380906,1771100297207,-500.0,0.00017097,2]
[405380907,1771100297237,-500.0,0.00017097,2]
[405380908,1771100297267,-500.0,0.00017097,2]
[405380909,1771100297295,-500.0,0.00017097,2]
[405380910,1771100297321,-500.0,0.00017097,2]
[405380911,1771100297348,-500.0,0.00017097,2]
[405380912,1771100297376,-500.0,0.00017097,2]
[405380913,1771100297404,-350.0,0.00017097,2]
[405380914,1771100297439,-500.0,0.00017097,2]
[405380915,1771100297465,-500.0,0.00017097,2]
[405380916,1771100297490,-295.43107867,0.00017097,2]
[405380917,1771100297517,-500.0,0.00017097,2]
[405380918,1771100297542,-500.0,0.00017097,2]
[405380919,1771100297566,-500.0,0.00017097,2]
[405380920,1771100297591,-500.0,0.00017097,2]
[405380921,1771100297616,-3697.30079765,0.00017097,2]
[405380922,1771100297640,-500.0,0.00017097,2]
[405380923,1771100297665,-504.21820542,0.00017097,2]
[405380924,1771100297689,-500.0,0.00017097,2]
[405380925,1771100753226,1652.28227815,0.000129,2]
[405380938,1771101032223,-300.0,0.00016199,2]
[405380941,1771101032233,-579.0,0.00016199,2]
[405380942,1771101032243,-255.0,0.00016199,2]
[405380943,1771101032254,-286.0,0.00016199,2]
[405380944,1771101032263,-417.61819166,0.000162,5]
[405380945,1771101032276,-344.81,0.000162,5]
[405380946,1771101032288,-27222.80519417,0.000162,5]
[405380947,1771101032298,-1254.41808677,0.000162,5]
[405380948,1771101032308,-1342.64096061,0.000162,5]
[405380949,1771101032319,-824.83,0.000162,5]
[405380950,1771101032330,-6478.73944726,0.000162,5]
[405380951,1771101032348,-2773.96661148,0.000162,5]
[405380952,1771101032358,-280.63250004,0.000162,5]
[405380953,1771101032369,-477.97880591,0.000162,5]
[405380959,1771101038319,-713.98681171,0.000162,5]
[405380970,1771101040848,-48.65824425,0.000162,5]
[405380971,1771101040860,-33197.39317919,0.000162,5]
[405380972,1771101040870,-166.047,0.00016657,2]
[405380973,1771101040879,-1282.172,0.00016657,2]
[405380974,1771101040889,-869.24856348,0.00016797,2]
[405380975,1771101040898,-377.47117106,0.00016797,2]
[405380976,1771101040907,-151.73231443,0.00016887,2]
[405380977,1771101040917,-163.91800301,0.00016896,2]
[405380978,1771101040927,-500.0,0.00016896,2]
[405380979,1771101040936,-456.85580323,0.00016896,2]
[405380980,1771101040946,-160.74972443,0.00016896,2]
[405380981,1771101040955,-500.0,0.00016896,2]
[405380982,1771101040965,-500.0,0.00016896,2]
[405380983,1771101040974,-540.0193552,0.00016896,2]
[405380984,1771101040983,-5660.7001,0.00016897,2]
[405380985,1771101040994,-4127.1189,0.00016897,2]
[405380986,1771101041003,-1120.444,0.00016897,2]
[405380987,1771101041013,-662395.30808967,0.00016897,2]
[405380988,1771101041029,-1017.64599852,0.00016897,2]
[405380989,1771101041041,-644.20590704,0.00016897,2]
[405380995,1771101046167,-5424.17752148,0.00016897,2]
[405380997,1771101046388,-52900.2798407,0.00016897,2]
[405381000,1771101338966,-538.20487354,0.00016697,2]
[405381001,1771101338992,-500.0,0.00016796,2]
[405381002,1771101339021,-578.01354864,0.00016796,2]
[405381003,1771101339048,-462.00580656,0.00016796,2]
[405381004,1771101339078,-456.85580323,0.00016796,2]
[405381005,1771101339107,-500.0,0.00016796,2]
[405381006,1771101339947,248.10201994,0.00016697,2]
[405381007,1771101364675,223.29271409,0.00016767,2]
[405381020,1771102181132,-2678.61,0.00013422,2]
[405381021,1771102181153,-250.0,0.00013422,2]
[405381022,1771102181176,-260.0,0.00013422,2]
[405381023,1771102181196,-811.39,0.00013725,2]
[405381026,1771102231439,-1498.35000001,0.00013725,2]
[405381027,1771102231495,-368.86999999,0.00013725,2]
[405381028,1771102231505,-263.0,0.00013725,2]
[405381029,1771102231515,-763.73000001,0.00014027,2]
[405381037,1771102239611,-672.66563398,0.00014027,2]
[405381038,1771102239721,-1242.21436601,0.00014027,2]
[405381039,1771102239730,-68.25918539,0.0001433,2]
[405381040,1771102239775,-2610.35081461,0.0001433,2]